{"text_format":"1","workbook":"xlsx","n_sheets":3,"sheets":["العملاء","الادخال","الحركة"],"not_rendered":{"charts":0,"images":0,"macros":1,"external_links":0,"defined_names":0,"comments":0,"pivot_tables":0},"unopened":[],"bounds":{"document_bytes":16777216,"sheet_cells":100000,"rows_first":2000,"rows_last":500,"rows_between":2000,"halvings":0,"cell_chars":16384,"cell_head_chars":4096},"cells_cut":0,"cells_raw":0,"read":"whole","date_system":"1900"}

{"sheet":"العملاء","index":0,"n_rows":6,"n_cols":6,"rows_kept":6,"cut":false,"hidden":false,"merged":[]}
["اسم العميل","سعر الجهاز","الاشتراك الشهري","رسوم التركيب","المندوب","نوع العقد"]
["احمد علي",50,6,5,"مجد","بيع"]
["محمد راغب",0,7,0,"علي","اجار"]
["سامي يوسف",60,6,0,"علي","بيع"]
["عبدالرحمن الهلالي",0,8,5,"مجد","اجار"]
["جمال ابوسليمان",70,5,5,"رامي","بيع"]

{"sheet":"الادخال","index":1,"n_rows":24,"n_cols":11,"rows_kept":24,"cut":false,"hidden":false,"merged":[]}
["اسم العميل ","الحركة","التاريخ","العدد","سعر الجهاز","الاشتراك الشهري","المندوب ","نوع العقد","رقم الجهاز","رقم المركبة ","ملاحظة"]
["احمد علي","اضافة","2019-01-01",1,{"$f":"IF($A2=\"\",\"\",INDEX(العملاء!B:B,MATCH(الادخال!$A2,العملاء!$A:$A,0)))","v":50},{"$f":"IF($A2=\"\",\"\",INDEX(العملاء!C:C,MATCH(الادخال!$A2,العملاء!$A:$A,0)))","v":6},{"$f":"IF($A2=\"\",\"\",INDEX(العملاء!E:E,MATCH(الادخال!$A2,العملاء!$A:$A,0)))","v":"مجد"},{"$f":"IF($A2=\"\",\"\",INDEX(العملاء!F:F,MATCH(الادخال!$A2,العملاء!$A:$A,0)))","v":"بيع"},"65582","17-125452","ككممننن"]
["احمد علي","اضافة","2019-01-01",1,{"$f":"IF($A3=\"\",\"\",INDEX(العملاء!B:B,MATCH(الادخال!$A3,العملاء!$A:$A,0)))","v":50},{"$f":"IF($A3=\"\",\"\",INDEX(العملاء!C:C,MATCH(الادخال!$A3,العملاء!$A:$A,0)))","v":6},{"$f":"IF($A3=\"\",\"\",INDEX(العملاء!E:E,MATCH(الادخال!$A3,العملاء!$A:$A,0)))","v":"مجد"},{"$f":"IF($A3=\"\",\"\",INDEX(العملاء!F:F,MATCH(الادخال!$A3,العملاء!$A:$A,0)))","v":"بيع"},"65982","17-125486","خهناتنلتات"]
["احمد علي","اضافة","2019-01-01",1,{"$f":"IF($A4=\"\",\"\",INDEX(العملاء!B:B,MATCH(الادخال!$A4,العملاء!$A:$A,0)))","v":50},{"$f":"IF($A4=\"\",\"\",INDEX(العملاء!C:C,MATCH(الادخال!$A4,العملاء!$A:$A,0)))","v":6},{"$f":"IF($A4=\"\",\"\",INDEX(العملاء!E:E,MATCH(الادخال!$A4,العملاء!$A:$A,0)))","v":"مجد"},{"$f":"IF($A4=\"\",\"\",INDEX(العملاء!F:F,MATCH(الادخال!$A4,العملاء!$A:$A,0)))","v":"بيع"},"65894","17-654525","نتاراار"]
[null,null,null,null,{"$f":"IF($A5=\"\",\"\",INDEX(العملاء!B:B,MATCH(الادخال!$A5,العملاء!$A:$A,0)))","v":""},{"$f":"IF($A5=\"\",\"\",INDEX(العملاء!C:C,MATCH(الادخال!$A5,العملاء!$A:$A,0)))","v":""},{"$f":"IF($A5=\"\",\"\",INDEX(العملاء!E:E,MATCH(الادخال!$A5,العملاء!$A:$A,0)))","v":""},{"$f":"IF($A5=\"\",\"\",INDEX(العملاء!F:F,MATCH(الادخال!$A5,العملاء!$A:$A,0)))","v":""}]
[null,null,null,null,{"$f":"IF($A6=\"\",\"\",INDEX(العملاء!B:B,MATCH(الادخال!$A6,العملاء!$A:$A,0)))","v":""},{"$f":"IF($A6=\"\",\"\",INDEX(العملاء!C:C,MATCH(الادخال!$A6,العملاء!$A:$A,0)))","v":""},{"$f":"IF($A6=\"\",\"\",INDEX(العملاء!E:E,MATCH(الادخال!$A6,العملاء!$A:$A,0)))","v":""},{"$f":"IF($A6=\"\",\"\",INDEX(العملاء!F:F,MATCH(الادخال!$A6,العملاء!$A:$A,0)))","v":""}]
[null,null,null,null,{"$f":"IF($A7=\"\",\"\",INDEX(العملاء!B:B,MATCH(الادخال!$A7,العملاء!$A:$A,0)))","v":""},{"$f":"IF($A7=\"\",\"\",INDEX(العملاء!C:C,MATCH(الادخال!$A7,العملاء!$A:$A,0)))","v":""},{"$f":"IF($A7=\"\",\"\",INDEX(العملاء!E:E,MATCH(الادخال!$A7,العملاء!$A:$A,0)))","v":""},{"$f":"IF($A7=\"\",\"\",INDEX(العملاء!F:F,MATCH(الادخال!$A7,العملاء!$A:$A,0)))","v":""}]
[null,null,null,null,{"$f":"IF($A8=\"\",\"\",INDEX(العملاء!B:B,MATCH(الادخال!$A8,العملاء!$A:$A,0)))","v":""},{"$f":"IF($A8=\"\",\"\",INDEX(العملاء!C:C,MATCH(الادخال!$A8,العملاء!$A:$A,0)))","v":""},{"$f":"IF($A8=\"\",\"\",INDEX(العملاء!E:E,MATCH(الادخال!$A8,العملاء!$A:$A,0)))","v":""},{"$f":"IF($A8=\"\",\"\",INDEX(العملاء!F:F,MATCH(الادخال!$A8,العملاء!$A:$A,0)))","v":""}]
[null,null,null,null,{"$f":"IF($A9=\"\",\"\",INDEX(العملاء!B:B,MATCH(الادخال!$A9,العملاء!$A:$A,0)))","v":""},{"$f":"IF($A9=\"\",\"\",INDEX(العملاء!C:C,MATCH(الادخال!$A9,العملاء!$A:$A,0)))","v":""},{"$f":"IF($A9=\"\",\"\",INDEX(العملاء!E:E,MATCH(الادخال!$A9,العملاء!$A:$A,0)))","v":""},{"$f":"IF($A9=\"\",\"\",INDEX(العملاء!F:F,MATCH(الادخال!$A9,العملاء!$A:$A,0)))","v":""}]
[null,null,null,null,{"$f":"IF($A10=\"\",\"\",INDEX(العملاء!B:B,MATCH(الادخال!$A10,العملاء!$A:$A,0)))","v":""},{"$f":"IF($A10=\"\",\"\",INDEX(العملاء!C:C,MATCH(الادخال!$A10,العملاء!$A:$A,0)))","v":""},{"$f":"IF($A10=\"\",\"\",INDEX(العملاء!E:E,MATCH(الادخال!$A10,العملاء!$A:$A,0)))","v":""},{"$f":"IF($A10=\"\",\"\",INDEX(العملاء!F:F,MATCH(الادخال!$A10,العملاء!$A:$A,0)))","v":""}]
[null,null,null,null,{"$f":"IF($A11=\"\",\"\",INDEX(العملاء!B:B,MATCH(الادخال!$A11,العملاء!$A:$A,0)))","v":""},{"$f":"IF($A11=\"\",\"\",INDEX(العملاء!C:C,MATCH(الادخال!$A11,العملاء!$A:$A,0)))","v":""},{"$f":"IF($A11=\"\",\"\",INDEX(العملاء!E:E,MATCH(الادخال!$A11,العملاء!$A:$A,0)))","v":""},{"$f":"IF($A11=\"\",\"\",INDEX(العملاء!F:F,MATCH(الادخال!$A11,العملاء!$A:$A,0)))","v":""}]
[null,null,null,null,{"$f":"IF($A12=\"\",\"\",INDEX(العملاء!B:B,MATCH(الادخال!$A12,العملاء!$A:$A,0)))","v":""},{"$f":"IF($A12=\"\",\"\",INDEX(العملاء!C:C,MATCH(الادخال!$A12,العملاء!$A:$A,0)))","v":""},{"$f":"IF($A12=\"\",\"\",INDEX(العملاء!E:E,MATCH(الادخال!$A12,العملاء!$A:$A,0)))","v":""},{"$f":"IF($A12=\"\",\"\",INDEX(العملاء!F:F,MATCH(الادخال!$A12,العملاء!$A:$A,0)))","v":""}]
[null,null,null,null,{"$f":"IF($A13=\"\",\"\",INDEX(العملاء!B:B,MATCH(الادخال!$A13,العملاء!$A:$A,0)))","v":""},{"$f":"IF($A13=\"\",\"\",INDEX(العملاء!C:C,MATCH(الادخال!$A13,العملاء!$A:$A,0)))","v":""},{"$f":"IF($A13=\"\",\"\",INDEX(العملاء!E:E,MATCH(الادخال!$A13,العملاء!$A:$A,0)))","v":""},{"$f":"IF($A13=\"\",\"\",INDEX(العملاء!F:F,MATCH(الادخال!$A13,العملاء!$A:$A,0)))","v":""}]
[null,null,null,null,{"$f":"IF($A14=\"\",\"\",INDEX(العملاء!B:B,MATCH(الادخال!$A14,العملاء!$A:$A,0)))","v":""},{"$f":"IF($A14=\"\",\"\",INDEX(العملاء!C:C,MATCH(الادخال!$A14,العملاء!$A:$A,0)))","v":""},{"$f":"IF($A14=\"\",\"\",INDEX(العملاء!E:E,MATCH(الادخال!$A14,العملاء!$A:$A,0)))","v":""},{"$f":"IF($A14=\"\",\"\",INDEX(العملاء!F:F,MATCH(الادخال!$A14,العملاء!$A:$A,0)))","v":""}]
[null,null,null,null,{"$f":"IF($A15=\"\",\"\",INDEX(العملاء!B:B,MATCH(الادخال!$A15,العملاء!$A:$A,0)))","v":""},{"$f":"IF($A15=\"\",\"\",INDEX(العملاء!C:C,MATCH(الادخال!$A15,العملاء!$A:$A,0)))","v":""},{"$f":"IF($A15=\"\",\"\",INDEX(العملاء!E:E,MATCH(الادخال!$A15,العملاء!$A:$A,0)))","v":""},{"$f":"IF($A15=\"\",\"\",INDEX(العملاء!F:F,MATCH(الادخال!$A15,العملاء!$A:$A,0)))","v":""}]
[null,null,null,null,{"$f":"IF($A16=\"\",\"\",INDEX(العملاء!B:B,MATCH(الادخال!$A16,العملاء!$A:$A,0)))","v":""},{"$f":"IF($A16=\"\",\"\",INDEX(العملاء!C:C,MATCH(الادخال!$A16,العملاء!$A:$A,0)))","v":""},{"$f":"IF($A16=\"\",\"\",INDEX(العملاء!E:E,MATCH(الادخال!$A16,العملاء!$A:$A,0)))","v":""},{"$f":"IF($A16=\"\",\"\",INDEX(العملاء!F:F,MATCH(الادخال!$A16,العملاء!$A:$A,0)))","v":""}]
[null,null,null,null,{"$f":"IF($A17=\"\",\"\",INDEX(العملاء!B:B,MATCH(الادخال!$A17,العملاء!$A:$A,0)))","v":""},{"$f":"IF($A17=\"\",\"\",INDEX(العملاء!C:C,MATCH(الادخال!$A17,العملاء!$A:$A,0)))","v":""},{"$f":"IF($A17=\"\",\"\",INDEX(العملاء!E:E,MATCH(الادخال!$A17,العملاء!$A:$A,0)))","v":""},{"$f":"IF($A17=\"\",\"\",INDEX(العملاء!F:F,MATCH(الادخال!$A17,العملاء!$A:$A,0)))","v":""}]
[null,null,null,null,{"$f":"IF($A18=\"\",\"\",INDEX(العملاء!B:B,MATCH(الادخال!$A18,العملاء!$A:$A,0)))","v":""},{"$f":"IF($A18=\"\",\"\",INDEX(العملاء!C:C,MATCH(الادخال!$A18,العملاء!$A:$A,0)))","v":""},{"$f":"IF($A18=\"\",\"\",INDEX(العملاء!E:E,MATCH(الادخال!$A18,العملاء!$A:$A,0)))","v":""},{"$f":"IF($A18=\"\",\"\",INDEX(العملاء!F:F,MATCH(الادخال!$A18,العملاء!$A:$A,0)))","v":""}]
[null,null,null,null,{"$f":"IF($A19=\"\",\"\",INDEX(العملاء!B:B,MATCH(الادخال!$A19,العملاء!$A:$A,0)))","v":""},{"$f":"IF($A19=\"\",\"\",INDEX(العملاء!C:C,MATCH(الادخال!$A19,العملاء!$A:$A,0)))","v":""},{"$f":"IF($A19=\"\",\"\",INDEX(العملاء!E:E,MATCH(الادخال!$A19,العملاء!$A:$A,0)))","v":""},{"$f":"IF($A19=\"\",\"\",INDEX(العملاء!F:F,MATCH(الادخال!$A19,العملاء!$A:$A,0)))","v":""}]
[null,null,null,null,{"$f":"IF($A20=\"\",\"\",INDEX(العملاء!B:B,MATCH(الادخال!$A20,العملاء!$A:$A,0)))","v":""},{"$f":"IF($A20=\"\",\"\",INDEX(العملاء!C:C,MATCH(الادخال!$A20,العملاء!$A:$A,0)))","v":""},{"$f":"IF($A20=\"\",\"\",INDEX(العملاء!E:E,MATCH(الادخال!$A20,العملاء!$A:$A,0)))","v":""},{"$f":"IF($A20=\"\",\"\",INDEX(العملاء!F:F,MATCH(الادخال!$A20,العملاء!$A:$A,0)))","v":""}]
[null,null,null,null,{"$f":"IF($A21=\"\",\"\",INDEX(العملاء!B:B,MATCH(الادخال!$A21,العملاء!$A:$A,0)))","v":""},{"$f":"IF($A21=\"\",\"\",INDEX(العملاء!C:C,MATCH(الادخال!$A21,العملاء!$A:$A,0)))","v":""},{"$f":"IF($A21=\"\",\"\",INDEX(العملاء!E:E,MATCH(الادخال!$A21,العملاء!$A:$A,0)))","v":""},{"$f":"IF($A21=\"\",\"\",INDEX(العملاء!F:F,MATCH(الادخال!$A21,العملاء!$A:$A,0)))","v":""}]
[null,null,null,null,{"$f":"IF($A22=\"\",\"\",INDEX(العملاء!B:B,MATCH(الادخال!$A22,العملاء!$A:$A,0)))","v":""},{"$f":"IF($A22=\"\",\"\",INDEX(العملاء!C:C,MATCH(الادخال!$A22,العملاء!$A:$A,0)))","v":""},{"$f":"IF($A22=\"\",\"\",INDEX(العملاء!E:E,MATCH(الادخال!$A22,العملاء!$A:$A,0)))","v":""},{"$f":"IF($A22=\"\",\"\",INDEX(العملاء!F:F,MATCH(الادخال!$A22,العملاء!$A:$A,0)))","v":""}]
[null,null,null,null,{"$f":"IF($A23=\"\",\"\",INDEX(العملاء!B:B,MATCH(الادخال!$A23,العملاء!$A:$A,0)))","v":""},{"$f":"IF($A23=\"\",\"\",INDEX(العملاء!C:C,MATCH(الادخال!$A23,العملاء!$A:$A,0)))","v":""},{"$f":"IF($A23=\"\",\"\",INDEX(العملاء!E:E,MATCH(الادخال!$A23,العملاء!$A:$A,0)))","v":""},{"$f":"IF($A23=\"\",\"\",INDEX(العملاء!F:F,MATCH(الادخال!$A23,العملاء!$A:$A,0)))","v":""}]
[null,null,null,null,{"$f":"IF($A24=\"\",\"\",INDEX(العملاء!B:B,MATCH(الادخال!$A24,العملاء!$A:$A,0)))","v":""},{"$f":"IF($A24=\"\",\"\",INDEX(العملاء!C:C,MATCH(الادخال!$A24,العملاء!$A:$A,0)))","v":""},{"$f":"IF($A24=\"\",\"\",INDEX(العملاء!E:E,MATCH(الادخال!$A24,العملاء!$A:$A,0)))","v":""},{"$f":"IF($A24=\"\",\"\",INDEX(العملاء!F:F,MATCH(الادخال!$A24,العملاء!$A:$A,0)))","v":""}]

{"sheet":"الحركة","index":2,"n_rows":300,"n_cols":24,"rows_kept":300,"cut":false,"hidden":false,"merged":[[0,23,1,23],[0,12,0,22],[0,0,0,11]]}
["اضافة",null,null,null,null,null,null,null,null,null,null,null,"فك",null,null,null,null,null,null,null,null,null,null,"الاجمالي"]
["اسم العميل","التاريخ","العدد","التاريخ","العدد","التاريخ","العدد","التاريخ","العدد","التاريخ","العدد","رصيد الاضافات","التاريخ","العدد","التاريخ","العدد","التاريخ","العدد","التاريخ","العدد","التاريخ","العدد","رصيد الفك"]
["احمد علي","2019-01-01",3,null,null,null,null,null,null,null,null,{"$f":"IF(A3=\"\",\"\",SUMIF($B$2:$K$2,\"العدد\",B3:K3))","v":3},null,null,null,null,null,null,null,null,null,null,{"$f":"IF(A3=\"\",\"\",SUMIF($M$2:$V$2,\"العدد\",M3:V3))","v":0},{"$f":"IF(A3=\"\",\"\",L3-W3)","v":3}]
["محمد راغب",null,null,null,null,null,null,null,null,null,null,0,null,null,null,null,null,null,null,null,null,null,0,0]
["سامي يوسف",null,null,null,null,null,null,null,null,null,null,0,null,null,null,null,null,null,null,null,null,null,0,0]
["عبدالرحمن الهلالي",null,null,null,null,null,null,null,null,null,null,0,null,null,null,null,null,null,null,null,null,null,0,0]
["جمال ابوسليمان",null,null,null,null,null,null,null,null,null,null,0,null,null,null,null,null,null,null,null,null,null,0,0]
[null,null,null,null,null,null,null,null,null,null,null,"",null,null,null,null,null,null,null,null,null,null,"",""]
[null,null,null,null,null,null,null,null,null,null,null,"",null,null,null,null,null,null,null,null,null,null,"",""]
[null,null,null,null,null,null,null,null,null,null,null,"",null,null,null,null,null,null,null,null,null,null,"",""]
[null,null,null,null,null,null,null,null,null,null,null,"",null,null,null,null,null,null,null,null,null,null,"",""]
[null,null,null,null,null,null,null,null,null,null,null,"",null,null,null,null,null,null,null,null,null,null,"",""]
[null,null,null,null,null,null,null,null,null,null,null,"",null,null,null,null,null,null,null,null,null,null,"",""]
[null,null,null,null,null,null,null,null,null,null,null,"",null,null,null,null,null,null,null,null,null,null,"",""]
[null,null,null,null,null,null,null,null,null,null,null,"",null,null,null,null,null,null,null,null,null,null,"",""]
[null,null,null,null,null,null,null,null,null,null,null,"",null,null,null,null,null,null,null,null,null,null,"",""]
[null,null,null,null,null,null,null,null,null,null,null,"",null,null,null,null,null,null,null,null,null,null,"",""]
[null,null,null,null,null,null,null,null,null,null,null,"",null,null,null,null,null,null,null,null,null,null,"",""]
[null,null,null,null,null,null,null,null,null,null,null,"",null,null,null,null,null,null,null,null,null,null,"",""]
[null,null,null,null,null,null,null,null,null,null,null,"",null,null,null,null,null,null,null,null,null,null,"",""]
[null,null,null,null,null,null,null,null,null,null,null,"",null,null,null,null,null,null,null,null,null,null,"",""]
[null,null,null,null,null,null,null,null,null,null,null,"",null,null,null,null,null,null,null,null,null,null,"",""]
[null,null,null,null,null,null,null,null,null,null,null,"",null,null,null,null,null,null,null,null,null,null,"",""]
[null,null,null,null,null,null,null,null,null,null,null,"",null,null,null,null,null,null,null,null,null,null,"",""]
[null,null,null,null,null,null,null,null,null,null,null,"",null,null,null,null,null,null,null,null,null,null,"",""]
[null,null,null,null,null,null,null,null,null,null,null,"",null,null,null,null,null,null,null,null,null,null,"",""]
[null,null,null,null,null,null,null,null,null,null,null,"",null,null,null,null,null,null,null,null,null,null,"",""]
[null,null,null,null,null,null,null,null,null,null,null,"",null,null,null,null,null,null,null,null,null,null,"",""]
[null,null,null,null,null,null,null,null,null,null,null,"",null,null,null,null,null,null,null,null,null,null,"",""]
[null,null,null,null,null,null,null,null,null,null,null,"",null,null,null,null,null,null,null,null,null,null,"",""]
[null,null,null,null,null,null,null,null,null,null,null,"",null,null,null,null,null,null,null,null,null,null,"",""]
[null,null,null,null,null,null,null,null,null,null,null,"",null,null,null,null,null,null,null,null,null,null,"",""]
[null,null,null,null,null,null,null,null,null,null,null,"",null,null,null,null,null,null,null,null,null,null,"",""]
[null,null,null,null,null,null,null,null,null,null,null,"",null,null,null,null,null,null,null,null,null,null,"",""]
[null,null,null,null,null,null,null,null,null,null,null,"",null,null,null,null,null,null,null,null,null,null,"",""]
[null,null,null,null,null,null,null,null,null,null,null,"",null,null,null,null,null,null,null,null,null,null,"",""]
[null,null,null,null,null,null,null,null,null,null,null,"",null,null,null,null,null,null,null,null,null,null,"",""]
[null,null,null,null,null,null,null,null,null,null,null,"",null,null,null,null,null,null,null,null,null,null,"",""]
[null,null,null,null,null,null,null,null,null,null,null,"",null,null,null,null,null,null,null,null,null,null,"",""]
[null,null,null,null,null,null,null,null,null,null,null,"",null,null,null,null,null,null,null,null,null,null,"",""]
[null,null,null,null,null,null,null,null,null,null,null,"",null,null,null,null,null,null,null,null,null,null,"",""]
[null,null,null,null,null,null,null,null,null,null,null,"",null,null,null,null,null,null,null,null,null,null,"",""]
[null,null,null,null,null,null,null,null,null,null,null,"",null,null,null,null,null,null,null,null,null,null,"",""]
[null,null,null,null,null,null,null,null,null,null,null,"",null,null,null,null,null,null,null,null,null,null,"",""]
[null,null,null,null,null,null,null,null,null,null,null,"",null,null,null,null,null,null,null,null,null,null,"",""]
[null,null,null,null,null,null,null,null,null,null,null,"",null,null,null,null,null,null,null,null,null,null,"",""]
[null,null,null,null,null,null,null,null,null,null,null,"",null,null,null,null,null,null,null,null,null,null,"",""]
[null,null,null,null,null,null,null,null,null,null,null,"",null,null,null,null,null,null,null,null,null,null,"",""]
[null,null,null,null,null,null,null,null,null,null,null,"",null,null,null,null,null,null,null,null,null,null,"",""]
[null,null,null,null,null,null,null,null,null,null,null,"",null,null,null,null,null,null,null,null,null,null,"",""]
[null,null,null,null,null,null,null,null,null,null,null,"",null,null,null,null,null,null,null,null,null,null,"",""]
[null,null,null,null,null,null,null,null,null,null,null,"",null,null,null,null,null,null,null,null,null,null,"",""]
[null,null,null,null,null,null,null,null,null,null,null,"",null,null,null,null,null,null,null,null,null,null,"",""]
[null,null,null,null,null,null,null,null,null,null,null,"",null,null,null,null,null,null,null,null,null,null,"",""]
[null,null,null,null,null,null,null,null,null,null,null,"",null,null,null,null,null,null,null,null,null,null,"",""]
[null,null,null,null,null,null,null,null,null,null,null,"",null,null,null,null,null,null,null,null,null,null,"",""]
[null,null,null,null,null,null,null,null,null,null,null,"",null,null,null,null,null,null,null,null,null,null,"",""]
[null,null,null,null,null,null,null,null,null,null,null,"",null,null,null,null,null,null,null,null,null,null,"",""]
[null,null,null,null,null,null,null,null,null,null,null,"",null,null,null,null,null,null,null,null,null,null,"",""]
[null,null,null,null,null,null,null,null,null,null,null,"",null,null,null,null,null,null,null,null,null,null,"",""]
[null,null,null,null,null,null,null,null,null,null,null,"",null,null,null,null,null,null,null,null,null,null,"",""]
[null,null,null,null,null,null,null,null,null,null,null,"",null,null,null,null,null,null,null,null,null,null,"",""]
[null,null,null,null,null,null,null,null,null,null,null,"",null,null,null,null,null,null,null,null,null,null,"",""]
[null,null,null,null,null,null,null,null,null,null,null,"",null,null,null,null,null,null,null,null,null,null,"",""]
[null,null,null,null,null,null,null,null,null,null,null,"",null,null,null,null,null,null,null,null,null,null,"",""]
[null,null,null,null,null,null,null,null,null,null,null,"",null,null,null,null,null,null,null,null,null,null,"",""]
[null,null,null,null,null,null,null,null,null,null,null,{"$f":"IF(A67=\"\",\"\",SUMIF($B$2:$K$2,\"العدد\",B67:K67))","v":""},null,null,null,null,null,null,null,null,null,null,{"$f":"IF(A67=\"\",\"\",SUMIF($M$2:$V$2,\"العدد\",M67:V67))","v":""},{"$f":"IF(A67=\"\",\"\",L67-W67)","v":""}]
[null,null,null,null,null,null,null,null,null,null,null,"",null,null,null,null,null,null,null,null,null,null,"",""]
[null,null,null,null,null,null,null,null,null,null,null,"",null,null,null,null,null,null,null,null,null,null,"",""]
[null,null,null,null,null,null,null,null,null,null,null,"",null,null,null,null,null,null,null,null,null,null,"",""]
[null,null,null,null,null,null,null,null,null,null,null,"",null,null,null,null,null,null,null,null,null,null,"",""]
[null,null,null,null,null,null,null,null,null,null,null,"",null,null,null,null,null,null,null,null,null,null,"",""]
[null,null,null,null,null,null,null,null,null,null,null,"",null,null,null,null,null,null,null,null,null,null,"",""]
[null,null,null,null,null,null,null,null,null,null,null,"",null,null,null,null,null,null,null,null,null,null,"",""]
[null,null,null,null,null,null,null,null,null,null,null,"",null,null,null,null,null,null,null,null,null,null,"",""]
[null,null,null,null,null,null,null,null,null,null,null,"",null,null,null,null,null,null,null,null,null,null,"",""]
[null,null,null,null,null,null,null,null,null,null,null,"",null,null,null,null,null,null,null,null,null,null,"",""]
[null,null,null,null,null,null,null,null,null,null,null,"",null,null,null,null,null,null,null,null,null,null,"",""]
[null,null,null,null,null,null,null,null,null,null,null,"",null,null,null,null,null,null,null,null,null,null,"",""]
[null,null,null,null,null,null,null,null,null,null,null,"",null,null,null,null,null,null,null,null,null,null,"",""]
[null,null,null,null,null,null,null,null,null,null,null,"",null,null,null,null,null,null,null,null,null,null,"",""]
[null,null,null,null,null,null,null,null,null,null,null,"",null,null,null,null,null,null,null,null,null,null,"",""]
[null,null,null,null,null,null,null,null,null,null,null,"",null,null,null,null,null,null,null,null,null,null,"",""]
[null,null,null,null,null,null,null,null,null,null,null,"",null,null,null,null,null,null,null,null,null,null,"",""]
[null,null,null,null,null,null,null,null,null,null,null,"",null,null,null,null,null,null,null,null,null,null,"",""]
[null,null,null,null,null,null,null,null,null,null,null,"",null,null,null,null,null,null,null,null,null,null,"",""]
[null,null,null,null,null,null,null,null,null,null,null,"",null,null,null,null,null,null,null,null,null,null,"",""]
[null,null,null,null,null,null,null,null,null,null,null,"",null,null,null,null,null,null,null,null,null,null,"",""]
[null,null,null,null,null,null,null,null,null,null,null,"",null,null,null,null,null,null,null,null,null,null,"",""]
[null,null,null,null,null,null,null,null,null,null,null,"",null,null,null,null,null,null,null,null,null,null,"",""]
[null,null,null,null,null,null,null,null,null,null,null,"",null,null,null,null,null,null,null,null,null,null,"",""]
[null,null,null,null,null,null,null,null,null,null,null,"",null,null,null,null,null,null,null,null,null,null,"",""]
[null,null,null,null,null,null,null,null,null,null,null,"",null,null,null,null,null,null,null,null,null,null,"",""]
[null,null,null,null,null,null,null,null,null,null,null,"",null,null,null,null,null,null,null,null,null,null,"",""]
[null,null,null,null,null,null,null,null,null,null,null,"",null,null,null,null,null,null,null,null,null,null,"",""]
[null,null,null,null,null,null,null,null,null,null,null,"",null,null,null,null,null,null,null,null,null,null,"",""]
[null,null,null,null,null,null,null,null,null,null,null,"",null,null,null,null,null,null,null,null,null,null,"",""]
[null,null,null,null,null,null,null,null,null,null,null,"",null,null,null,null,null,null,null,null,null,null,"",""]
[null,null,null,null,null,null,null,null,null,null,null,"",null,null,null,null,null,null,null,null,null,null,"",""]
[null,null,null,null,null,null,null,null,null,null,null,"",null,null,null,null,null,null,null,null,null,null,"",""]
[null,null,null,null,null,null,null,null,null,null,null,"",null,null,null,null,null,null,null,null,null,null,"",""]
[null,null,null,null,null,null,null,null,null,null,null,"",null,null,null,null,null,null,null,null,null,null,"",""]
[null,null,null,null,null,null,null,null,null,null,null,"",null,null,null,null,null,null,null,null,null,null,"",""]
[null,null,null,null,null,null,null,null,null,null,null,"",null,null,null,null,null,null,null,null,null,null,"",""]
[null,null,null,null,null,null,null,null,null,null,null,"",null,null,null,null,null,null,null,null,null,null,"",""]
[null,null,null,null,null,null,null,null,null,null,null,"",null,null,null,null,null,null,null,null,null,null,"",""]
[null,null,null,null,null,null,null,null,null,null,null,"",null,null,null,null,null,null,null,null,null,null,"",""]
[null,null,null,null,null,null,null,null,null,null,null,"",null,null,null,null,null,null,null,null,null,null,"",""]
[null,null,null,null,null,null,null,null,null,null,null,"",null,null,null,null,null,null,null,null,null,null,"",""]
[null,null,null,null,null,null,null,null,null,null,null,"",null,null,null,null,null,null,null,null,null,null,"",""]
[null,null,null,null,null,null,null,null,null,null,null,"",null,null,null,null,null,null,null,null,null,null,"",""]
[null,null,null,null,null,null,null,null,null,null,null,"",null,null,null,null,null,null,null,null,null,null,"",""]
[null,null,null,null,null,null,null,null,null,null,null,"",null,null,null,null,null,null,null,null,null,null,"",""]
[null,null,null,null,null,null,null,null,null,null,null,"",null,null,null,null,null,null,null,null,null,null,"",""]
[null,null,null,null,null,null,null,null,null,null,null,"",null,null,null,null,null,null,null,null,null,null,"",""]
[null,null,null,null,null,null,null,null,null,null,null,"",null,null,null,null,null,null,null,null,null,null,"",""]
[null,null,null,null,null,null,null,null,null,null,null,"",null,null,null,null,null,null,null,null,null,null,"",""]
[null,null,null,null,null,null,null,null,null,null,null,"",null,null,null,null,null,null,null,null,null,null,"",""]
[null,null,null,null,null,null,null,null,null,null,null,"",null,null,null,null,null,null,null,null,null,null,"",""]
[null,null,null,null,null,null,null,null,null,null,null,"",null,null,null,null,null,null,null,null,null,null,"",""]
[null,null,null,null,null,null,null,null,null,null,null,"",null,null,null,null,null,null,null,null,null,null,"",""]
[null,null,null,null,null,null,null,null,null,null,null,"",null,null,null,null,null,null,null,null,null,null,"",""]
[null,null,null,null,null,null,null,null,null,null,null,"",null,null,null,null,null,null,null,null,null,null,"",""]
[null,null,null,null,null,null,null,null,null,null,null,"",null,null,null,null,null,null,null,null,null,null,"",""]
[null,null,null,null,null,null,null,null,null,null,null,"",null,null,null,null,null,null,null,null,null,null,"",""]
[null,null,null,null,null,null,null,null,null,null,null,"",null,null,null,null,null,null,null,null,null,null,"",""]
[null,null,null,null,null,null,null,null,null,null,null,"",null,null,null,null,null,null,null,null,null,null,"",""]
[null,null,null,null,null,null,null,null,null,null,null,"",null,null,null,null,null,null,null,null,null,null,"",""]
[null,null,null,null,null,null,null,null,null,null,null,"",null,null,null,null,null,null,null,null,null,null,"",""]
[null,null,null,null,null,null,null,null,null,null,null,"",null,null,null,null,null,null,null,null,null,null,"",""]
[null,null,null,null,null,null,null,null,null,null,null,{"$f":"IF(A131=\"\",\"\",SUMIF($B$2:$K$2,\"العدد\",B131:K131))","v":""},null,null,null,null,null,null,null,null,null,null,{"$f":"IF(A131=\"\",\"\",SUMIF($M$2:$V$2,\"العدد\",M131:V131))","v":""},{"$f":"IF(A131=\"\",\"\",L131-W131)","v":""}]
[null,null,null,null,null,null,null,null,null,null,null,"",null,null,null,null,null,null,null,null,null,null,"",""]
[null,null,null,null,null,null,null,null,null,null,null,"",null,null,null,null,null,null,null,null,null,null,"",""]
[null,null,null,null,null,null,null,null,null,null,null,"",null,null,null,null,null,null,null,null,null,null,"",""]
[null,null,null,null,null,null,null,null,null,null,null,"",null,null,null,null,null,null,null,null,null,null,"",""]
[null,null,null,null,null,null,null,null,null,null,null,"",null,null,null,null,null,null,null,null,null,null,"",""]
[null,null,null,null,null,null,null,null,null,null,null,"",null,null,null,null,null,null,null,null,null,null,"",""]
[null,null,null,null,null,null,null,null,null,null,null,"",null,null,null,null,null,null,null,null,null,null,"",""]
[null,null,null,null,null,null,null,null,null,null,null,"",null,null,null,null,null,null,null,null,null,null,"",""]
[null,null,null,null,null,null,null,null,null,null,null,"",null,null,null,null,null,null,null,null,null,null,"",""]
[null,null,null,null,null,null,null,null,null,null,null,"",null,null,null,null,null,null,null,null,null,null,"",""]
[null,null,null,null,null,null,null,null,null,null,null,"",null,null,null,null,null,null,null,null,null,null,"",""]
[null,null,null,null,null,null,null,null,null,null,null,"",null,null,null,null,null,null,null,null,null,null,"",""]
[null,null,null,null,null,null,null,null,null,null,null,"",null,null,null,null,null,null,null,null,null,null,"",""]
[null,null,null,null,null,null,null,null,null,null,null,"",null,null,null,null,null,null,null,null,null,null,"",""]
[null,null,null,null,null,null,null,null,null,null,null,"",null,null,null,null,null,null,null,null,null,null,"",""]
[null,null,null,null,null,null,null,null,null,null,null,"",null,null,null,null,null,null,null,null,null,null,"",""]
[null,null,null,null,null,null,null,null,null,null,null,"",null,null,null,null,null,null,null,null,null,null,"",""]
[null,null,null,null,null,null,null,null,null,null,null,"",null,null,null,null,null,null,null,null,null,null,"",""]
[null,null,null,null,null,null,null,null,null,null,null,"",null,null,null,null,null,null,null,null,null,null,"",""]
[null,null,null,null,null,null,null,null,null,null,null,"",null,null,null,null,null,null,null,null,null,null,"",""]
[null,null,null,null,null,null,null,null,null,null,null,"",null,null,null,null,null,null,null,null,null,null,"",""]
[null,null,null,null,null,null,null,null,null,null,null,"",null,null,null,null,null,null,null,null,null,null,"",""]
[null,null,null,null,null,null,null,null,null,null,null,"",null,null,null,null,null,null,null,null,null,null,"",""]
[null,null,null,null,null,null,null,null,null,null,null,"",null,null,null,null,null,null,null,null,null,null,"",""]
[null,null,null,null,null,null,null,null,null,null,null,"",null,null,null,null,null,null,null,null,null,null,"",""]
[null,null,null,null,null,null,null,null,null,null,null,"",null,null,null,null,null,null,null,null,null,null,"",""]
[null,null,null,null,null,null,null,null,null,null,null,"",null,null,null,null,null,null,null,null,null,null,"",""]
[null,null,null,null,null,null,null,null,null,null,null,"",null,null,null,null,null,null,null,null,null,null,"",""]
[null,null,null,null,null,null,null,null,null,null,null,"",null,null,null,null,null,null,null,null,null,null,"",""]
[null,null,null,null,null,null,null,null,null,null,null,"",null,null,null,null,null,null,null,null,null,null,"",""]
[null,null,null,null,null,null,null,null,null,null,null,"",null,null,null,null,null,null,null,null,null,null,"",""]
[null,null,null,null,null,null,null,null,null,null,null,"",null,null,null,null,null,null,null,null,null,null,"",""]
[null,null,null,null,null,null,null,null,null,null,null,"",null,null,null,null,null,null,null,null,null,null,"",""]
[null,null,null,null,null,null,null,null,null,null,null,"",null,null,null,null,null,null,null,null,null,null,"",""]
[null,null,null,null,null,null,null,null,null,null,null,"",null,null,null,null,null,null,null,null,null,null,"",""]
[null,null,null,null,null,null,null,null,null,null,null,"",null,null,null,null,null,null,null,null,null,null,"",""]
[null,null,null,null,null,null,null,null,null,null,null,"",null,null,null,null,null,null,null,null,null,null,"",""]
[null,null,null,null,null,null,null,null,null,null,null,"",null,null,null,null,null,null,null,null,null,null,"",""]
[null,null,null,null,null,null,null,null,null,null,null,"",null,null,null,null,null,null,null,null,null,null,"",""]
[null,null,null,null,null,null,null,null,null,null,null,"",null,null,null,null,null,null,null,null,null,null,"",""]
[null,null,null,null,null,null,null,null,null,null,null,"",null,null,null,null,null,null,null,null,null,null,"",""]
[null,null,null,null,null,null,null,null,null,null,null,"",null,null,null,null,null,null,null,null,null,null,"",""]
[null,null,null,null,null,null,null,null,null,null,null,"",null,null,null,null,null,null,null,null,null,null,"",""]
[null,null,null,null,null,null,null,null,null,null,null,"",null,null,null,null,null,null,null,null,null,null,"",""]
[null,null,null,null,null,null,null,null,null,null,null,"",null,null,null,null,null,null,null,null,null,null,"",""]
[null,null,null,null,null,null,null,null,null,null,null,"",null,null,null,null,null,null,null,null,null,null,"",""]
[null,null,null,null,null,null,null,null,null,null,null,"",null,null,null,null,null,null,null,null,null,null,"",""]
[null,null,null,null,null,null,null,null,null,null,null,"",null,null,null,null,null,null,null,null,null,null,"",""]
[null,null,null,null,null,null,null,null,null,null,null,"",null,null,null,null,null,null,null,null,null,null,"",""]
[null,null,null,null,null,null,null,null,null,null,null,"",null,null,null,null,null,null,null,null,null,null,"",""]
[null,null,null,null,null,null,null,null,null,null,null,"",null,null,null,null,null,null,null,null,null,null,"",""]
[null,null,null,null,null,null,null,null,null,null,null,"",null,null,null,null,null,null,null,null,null,null,"",""]
[null,null,null,null,null,null,null,null,null,null,null,"",null,null,null,null,null,null,null,null,null,null,"",""]
[null,null,null,null,null,null,null,null,null,null,null,"",null,null,null,null,null,null,null,null,null,null,"",""]
[null,null,null,null,null,null,null,null,null,null,null,"",null,null,null,null,null,null,null,null,null,null,"",""]
[null,null,null,null,null,null,null,null,null,null,null,"",null,null,null,null,null,null,null,null,null,null,"",""]
[null,null,null,null,null,null,null,null,null,null,null,"",null,null,null,null,null,null,null,null,null,null,"",""]
[null,null,null,null,null,null,null,null,null,null,null,"",null,null,null,null,null,null,null,null,null,null,"",""]
[null,null,null,null,null,null,null,null,null,null,null,"",null,null,null,null,null,null,null,null,null,null,"",""]
[null,null,null,null,null,null,null,null,null,null,null,"",null,null,null,null,null,null,null,null,null,null,"",""]
[null,null,null,null,null,null,null,null,null,null,null,"",null,null,null,null,null,null,null,null,null,null,"",""]
[null,null,null,null,null,null,null,null,null,null,null,"",null,null,null,null,null,null,null,null,null,null,"",""]
[null,null,null,null,null,null,null,null,null,null,null,"",null,null,null,null,null,null,null,null,null,null,"",""]
[null,null,null,null,null,null,null,null,null,null,null,{"$f":"IF(A195=\"\",\"\",SUMIF($B$2:$K$2,\"العدد\",B195:K195))","v":""},null,null,null,null,null,null,null,null,null,null,{"$f":"IF(A195=\"\",\"\",SUMIF($M$2:$V$2,\"العدد\",M195:V195))","v":""},{"$f":"IF(A195=\"\",\"\",L195-W195)","v":""}]
[null,null,null,null,null,null,null,null,null,null,null,"",null,null,null,null,null,null,null,null,null,null,"",""]
[null,null,null,null,null,null,null,null,null,null,null,"",null,null,null,null,null,null,null,null,null,null,"",""]
[null,null,null,null,null,null,null,null,null,null,null,"",null,null,null,null,null,null,null,null,null,null,"",""]
[null,null,null,null,null,null,null,null,null,null,null,"",null,null,null,null,null,null,null,null,null,null,"",""]
[null,null,null,null,null,null,null,null,null,null,null,"",null,null,null,null,null,null,null,null,null,null,"",""]
[null,null,null,null,null,null,null,null,null,null,null,"",null,null,null,null,null,null,null,null,null,null,"",""]
[null,null,null,null,null,null,null,null,null,null,null,"",null,null,null,null,null,null,null,null,null,null,"",""]
[null,null,null,null,null,null,null,null,null,null,null,"",null,null,null,null,null,null,null,null,null,null,"",""]
[null,null,null,null,null,null,null,null,null,null,null,"",null,null,null,null,null,null,null,null,null,null,"",""]
[null,null,null,null,null,null,null,null,null,null,null,"",null,null,null,null,null,null,null,null,null,null,"",""]
[null,null,null,null,null,null,null,null,null,null,null,"",null,null,null,null,null,null,null,null,null,null,"",""]
[null,null,null,null,null,null,null,null,null,null,null,"",null,null,null,null,null,null,null,null,null,null,"",""]
[null,null,null,null,null,null,null,null,null,null,null,"",null,null,null,null,null,null,null,null,null,null,"",""]
[null,null,null,null,null,null,null,null,null,null,null,"",null,null,null,null,null,null,null,null,null,null,"",""]
[null,null,null,null,null,null,null,null,null,null,null,"",null,null,null,null,null,null,null,null,null,null,"",""]
[null,null,null,null,null,null,null,null,null,null,null,"",null,null,null,null,null,null,null,null,null,null,"",""]
[null,null,null,null,null,null,null,null,null,null,null,"",null,null,null,null,null,null,null,null,null,null,"",""]
[null,null,null,null,null,null,null,null,null,null,null,"",null,null,null,null,null,null,null,null,null,null,"",""]
[null,null,null,null,null,null,null,null,null,null,null,"",null,null,null,null,null,null,null,null,null,null,"",""]
[null,null,null,null,null,null,null,null,null,null,null,"",null,null,null,null,null,null,null,null,null,null,"",""]
[null,null,null,null,null,null,null,null,null,null,null,"",null,null,null,null,null,null,null,null,null,null,"",""]
[null,null,null,null,null,null,null,null,null,null,null,"",null,null,null,null,null,null,null,null,null,null,"",""]
[null,null,null,null,null,null,null,null,null,null,null,"",null,null,null,null,null,null,null,null,null,null,"",""]
[null,null,null,null,null,null,null,null,null,null,null,"",null,null,null,null,null,null,null,null,null,null,"",""]
[null,null,null,null,null,null,null,null,null,null,null,"",null,null,null,null,null,null,null,null,null,null,"",""]
[null,null,null,null,null,null,null,null,null,null,null,"",null,null,null,null,null,null,null,null,null,null,"",""]
[null,null,null,null,null,null,null,null,null,null,null,"",null,null,null,null,null,null,null,null,null,null,"",""]
[null,null,null,null,null,null,null,null,null,null,null,"",null,null,null,null,null,null,null,null,null,null,"",""]
[null,null,null,null,null,null,null,null,null,null,null,"",null,null,null,null,null,null,null,null,null,null,"",""]
[null,null,null,null,null,null,null,null,null,null,null,"",null,null,null,null,null,null,null,null,null,null,"",""]
[null,null,null,null,null,null,null,null,null,null,null,"",null,null,null,null,null,null,null,null,null,null,"",""]
[null,null,null,null,null,null,null,null,null,null,null,"",null,null,null,null,null,null,null,null,null,null,"",""]
[null,null,null,null,null,null,null,null,null,null,null,"",null,null,null,null,null,null,null,null,null,null,"",""]
[null,null,null,null,null,null,null,null,null,null,null,"",null,null,null,null,null,null,null,null,null,null,"",""]
[null,null,null,null,null,null,null,null,null,null,null,"",null,null,null,null,null,null,null,null,null,null,"",""]
[null,null,null,null,null,null,null,null,null,null,null,"",null,null,null,null,null,null,null,null,null,null,"",""]
[null,null,null,null,null,null,null,null,null,null,null,"",null,null,null,null,null,null,null,null,null,null,"",""]
[null,null,null,null,null,null,null,null,null,null,null,"",null,null,null,null,null,null,null,null,null,null,"",""]
[null,null,null,null,null,null,null,null,null,null,null,"",null,null,null,null,null,null,null,null,null,null,"",""]
[null,null,null,null,null,null,null,null,null,null,null,"",null,null,null,null,null,null,null,null,null,null,"",""]
[null,null,null,null,null,null,null,null,null,null,null,"",null,null,null,null,null,null,null,null,null,null,"",""]
[null,null,null,null,null,null,null,null,null,null,null,"",null,null,null,null,null,null,null,null,null,null,"",""]
[null,null,null,null,null,null,null,null,null,null,null,"",null,null,null,null,null,null,null,null,null,null,"",""]
[null,null,null,null,null,null,null,null,null,null,null,"",null,null,null,null,null,null,null,null,null,null,"",""]
[null,null,null,null,null,null,null,null,null,null,null,"",null,null,null,null,null,null,null,null,null,null,"",""]
[null,null,null,null,null,null,null,null,null,null,null,"",null,null,null,null,null,null,null,null,null,null,"",""]
[null,null,null,null,null,null,null,null,null,null,null,"",null,null,null,null,null,null,null,null,null,null,"",""]
[null,null,null,null,null,null,null,null,null,null,null,"",null,null,null,null,null,null,null,null,null,null,"",""]
[null,null,null,null,null,null,null,null,null,null,null,"",null,null,null,null,null,null,null,null,null,null,"",""]
[null,null,null,null,null,null,null,null,null,null,null,"",null,null,null,null,null,null,null,null,null,null,"",""]
[null,null,null,null,null,null,null,null,null,null,null,"",null,null,null,null,null,null,null,null,null,null,"",""]
[null,null,null,null,null,null,null,null,null,null,null,"",null,null,null,null,null,null,null,null,null,null,"",""]
[null,null,null,null,null,null,null,null,null,null,null,"",null,null,null,null,null,null,null,null,null,null,"",""]
[null,null,null,null,null,null,null,null,null,null,null,"",null,null,null,null,null,null,null,null,null,null,"",""]
[null,null,null,null,null,null,null,null,null,null,null,"",null,null,null,null,null,null,null,null,null,null,"",""]
[null,null,null,null,null,null,null,null,null,null,null,"",null,null,null,null,null,null,null,null,null,null,"",""]
[null,null,null,null,null,null,null,null,null,null,null,"",null,null,null,null,null,null,null,null,null,null,"",""]
[null,null,null,null,null,null,null,null,null,null,null,"",null,null,null,null,null,null,null,null,null,null,"",""]
[null,null,null,null,null,null,null,null,null,null,null,"",null,null,null,null,null,null,null,null,null,null,"",""]
[null,null,null,null,null,null,null,null,null,null,null,"",null,null,null,null,null,null,null,null,null,null,"",""]
[null,null,null,null,null,null,null,null,null,null,null,"",null,null,null,null,null,null,null,null,null,null,"",""]
[null,null,null,null,null,null,null,null,null,null,null,"",null,null,null,null,null,null,null,null,null,null,"",""]
[null,null,null,null,null,null,null,null,null,null,null,"",null,null,null,null,null,null,null,null,null,null,"",""]
[null,null,null,null,null,null,null,null,null,null,null,{"$f":"IF(A259=\"\",\"\",SUMIF($B$2:$K$2,\"العدد\",B259:K259))","v":""},null,null,null,null,null,null,null,null,null,null,{"$f":"IF(A259=\"\",\"\",SUMIF($M$2:$V$2,\"العدد\",M259:V259))","v":""},{"$f":"IF(A259=\"\",\"\",L259-W259)","v":""}]
[null,null,null,null,null,null,null,null,null,null,null,"",null,null,null,null,null,null,null,null,null,null,"",""]
[null,null,null,null,null,null,null,null,null,null,null,"",null,null,null,null,null,null,null,null,null,null,"",""]
[null,null,null,null,null,null,null,null,null,null,null,"",null,null,null,null,null,null,null,null,null,null,"",""]
[null,null,null,null,null,null,null,null,null,null,null,"",null,null,null,null,null,null,null,null,null,null,"",""]
[null,null,null,null,null,null,null,null,null,null,null,"",null,null,null,null,null,null,null,null,null,null,"",""]
[null,null,null,null,null,null,null,null,null,null,null,"",null,null,null,null,null,null,null,null,null,null,"",""]
[null,null,null,null,null,null,null,null,null,null,null,"",null,null,null,null,null,null,null,null,null,null,"",""]
[null,null,null,null,null,null,null,null,null,null,null,"",null,null,null,null,null,null,null,null,null,null,"",""]
[null,null,null,null,null,null,null,null,null,null,null,"",null,null,null,null,null,null,null,null,null,null,"",""]
[null,null,null,null,null,null,null,null,null,null,null,"",null,null,null,null,null,null,null,null,null,null,"",""]
[null,null,null,null,null,null,null,null,null,null,null,"",null,null,null,null,null,null,null,null,null,null,"",""]
[null,null,null,null,null,null,null,null,null,null,null,"",null,null,null,null,null,null,null,null,null,null,"",""]
[null,null,null,null,null,null,null,null,null,null,null,"",null,null,null,null,null,null,null,null,null,null,"",""]
[null,null,null,null,null,null,null,null,null,null,null,"",null,null,null,null,null,null,null,null,null,null,"",""]
[null,null,null,null,null,null,null,null,null,null,null,"",null,null,null,null,null,null,null,null,null,null,"",""]
[null,null,null,null,null,null,null,null,null,null,null,"",null,null,null,null,null,null,null,null,null,null,"",""]
[null,null,null,null,null,null,null,null,null,null,null,"",null,null,null,null,null,null,null,null,null,null,"",""]
[null,null,null,null,null,null,null,null,null,null,null,"",null,null,null,null,null,null,null,null,null,null,"",""]
[null,null,null,null,null,null,null,null,null,null,null,"",null,null,null,null,null,null,null,null,null,null,"",""]
[null,null,null,null,null,null,null,null,null,null,null,"",null,null,null,null,null,null,null,null,null,null,"",""]
[null,null,null,null,null,null,null,null,null,null,null,"",null,null,null,null,null,null,null,null,null,null,"",""]
[null,null,null,null,null,null,null,null,null,null,null,"",null,null,null,null,null,null,null,null,null,null,"",""]
[null,null,null,null,null,null,null,null,null,null,null,"",null,null,null,null,null,null,null,null,null,null,"",""]
[null,null,null,null,null,null,null,null,null,null,null,"",null,null,null,null,null,null,null,null,null,null,"",""]
[null,null,null,null,null,null,null,null,null,null,null,"",null,null,null,null,null,null,null,null,null,null,"",""]
[null,null,null,null,null,null,null,null,null,null,null,"",null,null,null,null,null,null,null,null,null,null,"",""]
[null,null,null,null,null,null,null,null,null,null,null,"",null,null,null,null,null,null,null,null,null,null,"",""]
[null,null,null,null,null,null,null,null,null,null,null,"",null,null,null,null,null,null,null,null,null,null,"",""]
[null,null,null,null,null,null,null,null,null,null,null,"",null,null,null,null,null,null,null,null,null,null,"",""]
[null,null,null,null,null,null,null,null,null,null,null,"",null,null,null,null,null,null,null,null,null,null,"",""]
[null,null,null,null,null,null,null,null,null,null,null,"",null,null,null,null,null,null,null,null,null,null,"",""]
[null,null,null,null,null,null,null,null,null,null,null,"",null,null,null,null,null,null,null,null,null,null,"",""]
[null,null,null,null,null,null,null,null,null,null,null,"",null,null,null,null,null,null,null,null,null,null,"",""]
[null,null,null,null,null,null,null,null,null,null,null,"",null,null,null,null,null,null,null,null,null,null,"",""]
[null,null,null,null,null,null,null,null,null,null,null,"",null,null,null,null,null,null,null,null,null,null,"",""]
[null,null,null,null,null,null,null,null,null,null,null,"",null,null,null,null,null,null,null,null,null,null,"",""]
[null,null,null,null,null,null,null,null,null,null,null,"",null,null,null,null,null,null,null,null,null,null,"",""]
[null,null,null,null,null,null,null,null,null,null,null,"",null,null,null,null,null,null,null,null,null,null,"",""]
[null,null,null,null,null,null,null,null,null,null,null,"",null,null,null,null,null,null,null,null,null,null,"",""]
[null,null,null,null,null,null,null,null,null,null,null,"",null,null,null,null,null,null,null,null,null,null,"",""]
[null,null,null,null,null,null,null,null,null,null,null,"",null,null,null,null,null,null,null,null,null,null,"",""]